[Event "Blixt-SM 2021"]
[Site "Elite Hotel Marina Plaza, Kungstorget 6, Helsingborg, Sweden"]
[Date "2021.11.14"]
[Round "2.1"]
[White "Smith, Axel"]
[Black "Storme, Isak"]
[Result "1/2-1/2"]
[TimeControl "3 minutes + 2 seconds per move."]
[WhiteTitle "GM"]
[BlackTitle "FM"]
[WhiteFideId "1707930"]
[BlackFideId "1728113"]
[WhiteElo "2473"]
[BlackElo "2037"]

1. e4 {[%clk 00:03:04]} e6 {[%clk 00:03:01]} {[%emt 00:00:02]} 2. d4 {[%clk
00:03:05]} {[%emt 00:00:02]} d5 {[%clk 00:03:02]} 3. exd5 {[%clk 00:03:07]}
{[%emt 00:00:01]} exd5 {[%clk 00:03:02]} {[%emt 00:00:02]} 4. Nf3 {[%clk
00:03:08]} Nf6 {[%clk 00:03:01]} {[%emt 00:00:02]} 5. Bd3 {[%clk 00:03:09]}
{[%emt 00:00:02]} c5 {[%clk 00:03:01]} {[%emt 00:00:02]} 6. O-O {[%clk
00:03:08]} {[%emt 00:00:03]} c4 {[%clk 00:03:01]} {[%emt 00:00:02]} 7. Re1+
{[%clk 00:03:10]} Be7 {[%clk 00:03:02]} {[%emt 00:00:01]} 8. Bf1 {[%clk
00:03:11]} O-O {[%emt 00:00:03]} 9. b3 cxb3 {[%emt 00:00:02]} 10. axb3 Nc6
{[%clk 00:03:00]} {[%emt 00:00:02]} 11. Bd3 {[%clk 00:02:57]} {[%emt 00:00:20]}
Bg4 {[%clk 00:02:47]} {[%emt 00:00:15]} 12. c3 {[%clk 00:02:58]} {[%emt
00:00:02]} a6 {[%clk 00:02:07]} {[%emt 00:00:42]} 13. Nbd2 {[%clk 00:02:53]}
{[%emt 00:00:06]} Bd6 {[%clk 00:01:59]} {[%emt 00:00:09]} 14. Nf1 {[%clk
00:02:53]} {[%emt 00:00:03]} Qc7 {[%clk 00:01:33]} {[%emt 00:00:28]} 15. h3
{[%clk 00:02:53]} {[%emt 00:00:02]} Bh5 {[%clk 00:01:33]} {[%emt 00:00:02]} 16.
Bg5 {[%clk 00:02:42]} {[%emt 00:00:13]} Nd7 {[%clk 00:01:23]} {[%emt 00:00:11]}
17. Ne3 {[%clk 00:02:35]} {[%emt 00:00:10]} Nb6 {[%clk 00:01:22]} {[%emt
00:00:03]} 18. Nf5 {[%clk 00:02:27]} {[%emt 00:00:09]} Bg6 {[%clk 00:01:20]}
{[%emt 00:00:04]} 19. N3h4 {[%clk 00:02:10]} {[%emt 00:00:19]} Rfe8 {[%clk
00:01:13]} {[%emt 00:00:09]} 20. Qf3 {[%clk 00:01:55]} {[%emt 00:00:18]} Bf8
{[%clk 00:01:02]} {[%emt 00:00:12]} 21. Bf4 {[%clk 00:01:34]} {[%emt 00:00:24]}
Qd7 {[%clk 00:00:59]} {[%emt 00:00:04]} 22. g4 {[%clk 00:01:28]} {[%emt
00:00:09]} Rxe1+ {[%clk 00:00:45]} {[%emt 00:00:16]} 23. Rxe1 {[%clk 00:01:29]}
Re8 {[%clk 00:00:34]} {[%emt 00:00:12]} 24. Rxe8 {[%clk 00:01:08]} {[%emt
00:00:24]} Qxe8 {[%clk 00:00:35]} {[%emt 00:00:01]} 25. Nxg6 {[%clk 00:00:57]}
{[%emt 00:00:13]} hxg6 {[%clk 00:00:35]} {[%emt 00:00:02]} 26. Ne3 {[%clk
00:00:58]} {[%emt 00:00:01]} Qd7 {[%clk 00:00:27]} {[%emt 00:00:10]} 27. Qg3
{[%clk 00:00:53]} {[%emt 00:00:07]} Na5 {[%clk 00:00:12]} {[%emt 00:00:17]} 28.
b4 {[%clk 00:00:49]} {[%emt 00:00:07]} Nac4 {[%clk 00:00:10]} {[%emt 00:00:03]}
29. Nxc4 {[%clk 00:00:45]} {[%emt 00:00:06]} Nxc4 {[%clk 00:00:10]} {[%emt
00:00:02]} 30. Qf3 {[%clk 00:00:31]} {[%emt 00:00:16]} Qc6 {[%clk 00:00:08]}
{[%emt 00:00:03]} 31. Kg2 {[%clk 00:00:29]} {[%emt 00:00:05]} b6 {[%clk
00:00:10]} {[%emt 00:00:01]} 32. h4 {[%clk 00:00:25]} {[%emt 00:00:06]} a5
{[%clk 00:00:10]} {[%emt 00:00:01]} 33. bxa5 {[%clk 00:00:24]} {[%emt
00:00:03]} bxa5 {[%clk 00:00:11]} {[%emt 00:00:01]} 34. h5 {[%clk 00:00:25]}
{[%emt 00:00:01]} gxh5 {[%clk 00:00:12]} {[%emt 00:00:01]} 35. gxh5 {[%clk
00:00:26]} a4 {[%clk 00:00:09]} {[%emt 00:00:06]} 36. Bc1 {[%clk 00:00:25]}
{[%emt 00:00:03]} a3 {[%clk 00:00:08]} {[%emt 00:00:02]} 37. Bxc4 {[%clk
00:00:19]} {[%emt 00:00:08]} Qxc4 {[%clk 00:00:08]} {[%emt 00:00:02]} 38. h6
{[%clk 00:00:14]} {[%emt 00:00:08]} gxh6 {[%clk 00:00:08]} {[%emt 00:00:02]} 39.
Qg4+ {[%clk 00:00:14]} {[%emt 00:00:02]} Kh7 {[%clk 00:00:07]} {[%emt
00:00:02]} 40. Qf5+ {[%clk 00:00:15]} Kg7 {[%clk 00:00:07]} {[%emt 00:00:03]}
41. Qg4+ {[%clk 00:00:15]} {[%emt 00:00:02]} Kh8 {[%clk 00:00:07]} {[%emt
00:00:02]} 42. Qf3 {[%clk 00:00:15]} {[%emt 00:00:02]} a2 {[%clk 00:00:07]}
{[%emt 00:00:02]} 43. Qxf7 {[%clk 00:00:13]} {[%emt 00:00:04]} Bg7 {[%clk
00:00:07]} {[%emt 00:00:02]} 44. Bb2 {[%clk 00:00:10]} {[%emt 00:00:06]} Qb3
{[%clk 00:00:07]} {[%emt 00:00:02]} 45. Ba1 {[%clk 00:00:08]} {[%emt 00:00:04]}
Qb1 {[%clk 00:00:08]} 46. Qxd5 {[%clk 00:00:06]} {[%emt 00:00:05]} Qxa1 {[%clk
00:00:08]} {[%emt 00:00:01]} 47. Qa8+ {[%clk 00:00:06]} {[%emt 00:00:02]} Kh7
{[%clk 00:00:08]} {[%emt 00:00:01]} 48. Qe4+ {[%clk 00:00:08]} Kg8 {[%clk
00:00:09]} {[%emt 00:00:01]} 49. Qe6+ {[%clk 00:00:09]} {[%emt 00:00:01]} Kf8
{[%clk 00:00:09]} {[%emt 00:00:02]} 50. Qd6+ {[%clk 00:00:11]} Kf7 {[%clk
00:00:10]} {[%emt 00:00:01]} 51. Qd7+ {[%clk 00:00:11]} {[%emt 00:00:02]} Kg6
{[%clk 00:00:10]} {[%emt 00:00:02]} 52. Qe6+ {[%clk 00:00:11]} {[%emt
00:00:02]} Bf6 {[%clk 00:00:10]} {[%emt 00:00:02]} 53. Qe4+ {[%clk 00:00:10]}
{[%emt 00:00:03]} Kf7 {[%clk 00:00:10]} {[%emt 00:00:02]} 54. Qd5+ {[%clk
00:00:12]} Ke7 {[%emt 00:00:02]} 55. Qc5+ Ke8 {[%clk 00:00:09]} {[%emt
00:00:03]} 56. Qc6+ {[%clk 00:00:14]} {[%emt 00:00:01]} Kf7 {[%clk 00:00:09]}
{[%emt 00:00:02]} 57. Qd5+ {[%clk 00:00:15]} {[%emt 00:00:01]} Kg7 {[%clk
00:00:09]} {[%emt 00:00:02]} 58. Qb7+ {[%clk 00:00:13]} {[%emt 00:00:04]} Kh8
{[%clk 00:00:08]} {[%emt 00:00:02]} 59. Qa8+ {[%clk 00:00:11]} {[%emt
00:00:05]} Kh7 {[%clk 00:00:08]} {[%emt 00:00:02]} 60. Qe4+ {[%clk 00:00:12]}
{[%emt 00:00:01]} Kg7 {[%clk 00:00:09]} 61. Qb7+ {[%clk 00:00:13]} {[%emt
00:00:01]} Kg6 {[%clk 00:00:09]} {[%emt 00:00:02]} 62. Qe4+ {[%clk 00:00:15]}
Kf7 {[%clk 00:00:07]} {[%emt 00:00:04]} 63. Qd5+ {[%clk 00:00:16]} Ke7 {[%clk
00:00:07]} {[%emt 00:00:02]} 64. Qb7+ {[%clk 00:00:17]} Kd8 {[%clk 00:00:07]}
{[%emt 00:00:02]} 65. Qb8+ {[%clk 00:00:17]} {[%emt 00:00:02]} Kd7 66. Qb7+ Ke8
{[%clk 00:00:09]} {[%emt 00:00:02]} 67. Qc6+ {[%clk 00:00:19]} {[%emt
00:00:01]} Ke7 {[%clk 00:00:10]} {[%emt 00:00:02]} 1/2-1/2

[Event "Blixt-SM 2021"]
[Site "Elite Hotel Marina Plaza, Kungstorget 6, Helsingborg, Sweden"]
[Date "2021.11.14"]
[Round "3.8"]
[White "Kucuksari, Kaan"]
[Black "Terochin, Piotr"]
[Result "1-0"]
[TimeControl "3 minutes + 2 seconds per move."]
[WhiteTitle "FM"]
[WhiteFideId "6380166"]
[BlackFideId "1113682"]
[WhiteElo "2301"]
[BlackElo "1779"]

1. d4 {[%clk 00:03:03]} Nf6 {[%clk 00:03:03]} {[%emt 00:00:02]} 2. c4 {[%clk
00:03:03]} {[%emt 00:00:01]} e6 {[%clk 00:03:04]} 3. g3 {[%clk 00:03:04]}
{[%emt 00:00:01]} d5 {[%clk 00:02:59]} {[%emt 00:00:07]} 4. Nf3 {[%clk
00:03:02]} {[%emt 00:00:04]} Be7 {[%clk 00:02:57]} {[%emt 00:00:04]} 5. Bg2
{[%clk 00:03:02]} {[%emt 00:00:02]} O-O {[%clk 00:02:53]} {[%emt 00:00:06]} 6.
O-O {[%clk 00:03:02]} {[%emt 00:00:02]} b6 {[%clk 00:02:54]} {[%emt 00:00:02]}
7. Ne5 {[%clk 00:03:01]} {[%emt 00:00:02]} Bb7 {[%clk 00:02:50]} {[%emt
00:00:07]} 8. Nc3 {[%clk 00:03:02]} Qc8 {[%clk 00:02:29]} {[%emt 00:00:23]} 9.
Bg5 {[%clk 00:02:22]} {[%emt 00:00:42]} dxc4 {[%clk 00:02:02]} {[%emt
00:00:30]} 10. e4 {[%clk 00:02:22]} {[%emt 00:00:01]} h6 {[%clk 00:01:54]}
{[%emt 00:00:09]} 11. Be3 {[%clk 00:02:19]} {[%emt 00:00:05]} c5 {[%clk
00:01:38]} {[%emt 00:00:19]} 12. d5 {[%clk 00:02:19]} {[%emt 00:00:02]} exd5
{[%clk 00:01:26]} {[%emt 00:00:14]} 13. exd5 {[%clk 00:02:20]} {[%emt
00:00:01]} Qf5 {[%clk 00:01:18]} {[%emt 00:00:10]} 14. Nxc4 {[%clk 00:01:32]}
{[%emt 00:00:50]} Rd8 {[%clk 00:01:01]} {[%emt 00:00:19]} 15. Bf4 {[%clk
00:01:16]} {[%emt 00:00:18]} Nxd5 {[%clk 00:00:48]} {[%emt 00:00:15]} 16. Nxd5
{[%clk 00:01:16]} {[%emt 00:00:03]} Bxd5 {[%clk 00:00:48]} {[%emt 00:00:02]} 17.
Ne3 {[%clk 00:01:14]} {[%emt 00:00:04]} Bxg2 {[%clk 00:00:37]} {[%emt
00:00:12]} 18. Nxf5 {[%clk 00:01:14]} {[%emt 00:00:02]} Rxd1 {[%clk 00:00:34]}
{[%emt 00:00:05]} 19. Rfxd1 {[%clk 00:01:14]} {[%emt 00:00:01]} Bf3 {[%clk
00:00:32]} {[%emt 00:00:04]} 20. Nxe7+ {[%clk 00:01:13]} {[%emt 00:00:03]} Kf8
{[%clk 00:00:33]} 21. Rd8+ {[%clk 00:01:13]} {[%emt 00:00:02]} Kxe7 {[%clk
00:00:34]} {[%emt 00:00:02]} 22. Rxb8 {[%clk 00:01:13]} {[%emt 00:00:01]} Rxb8
{[%clk 00:00:34]} {[%emt 00:00:03]} 23. Re1+ {[%clk 00:01:13]} {[%emt
00:00:01]} Kf6 {[%clk 00:00:34]} {[%emt 00:00:02]} 24. Bxb8 {[%clk 00:01:13]}
{[%emt 00:00:02]} 1-0

[Event "Blixt-SM 2021"]
[Site "Elite Hotel Marina Plaza, Kungstorget 6, Helsingborg, Sweden"]
[Date "2021.11.14"]
[Round "5.6"]
[White "Troedsson, Anton"]
[Black "Neretljak, Nedzad"]
[Result "1-0"]
[TimeControl "3 minutes + 2 seconds per move."]
[WhiteFideId "1746006"]
[BlackFideId "1713132"]
[WhiteElo "2104"]
[BlackElo "2148"]

1. Nf3 {[%clk 00:03:03]} {[%emt 00:00:48]} e6 {[%clk 00:03:01]} {[%emt
00:00:04]} 2. b3 {[%clk 00:03:04]} {[%emt 00:00:01]} Be7 {[%clk 00:03:00]}
{[%emt 00:00:02]} 3. Bb2 {[%clk 00:03:04]} {[%emt 00:00:01]} Bf6 {[%clk
00:03:01]} 4. d4 {[%clk 00:03:05]} c5 {[%clk 00:03:01]} {[%emt 00:00:03]} 5. c4
{[%clk 00:03:01]} {[%emt 00:00:06]} Nc6 {[%clk 00:02:59]} {[%emt 00:00:04]} 6.
e3 {[%clk 00:03:01]} {[%emt 00:00:02]} Nge7 {[%clk 00:02:57]} {[%emt 00:00:04]}
7. Nc3 {[%clk 00:02:59]} {[%emt 00:00:04]} cxd4 {[%clk 00:02:57]} {[%emt
00:00:04]} 8. exd4 {[%clk 00:02:57]} {[%emt 00:00:03]} d5 {[%clk 00:02:55]}
{[%emt 00:00:04]} 9. cxd5 {[%clk 00:02:46]} {[%emt 00:00:14]} exd5 {[%clk
00:02:53]} {[%emt 00:00:04]} 10. Be2 {[%clk 00:02:44]} {[%emt 00:00:04]} O-O
{[%clk 00:02:51]} {[%emt 00:00:04]} 11. O-O {[%clk 00:02:44]} {[%emt 00:00:01]}
Re8 {[%clk 00:02:52]} 12. Qd2 {[%clk 00:02:39]} {[%emt 00:00:06]} a6 {[%clk
00:02:50]} {[%emt 00:00:05]} 13. Na4 {[%clk 00:02:39]} {[%emt 00:00:02]} Ng6
{[%clk 00:02:40]} {[%emt 00:00:12]} 14. Rfe1 {[%clk 00:02:35]} {[%emt
00:00:06]} Bf5 {[%clk 00:02:35]} {[%emt 00:00:07]} 15. Nc5 {[%clk 00:02:32]}
{[%emt 00:00:05]} b6 {[%clk 00:02:33]} {[%emt 00:00:05]} 16. Nxa6 {[%clk
00:02:17]} {[%emt 00:00:17]} Qd6 {[%clk 00:02:21]} {[%emt 00:00:13]} 17. b4
{[%clk 00:02:11]} {[%emt 00:00:09]} Be4 {[%clk 00:02:15]} {[%emt 00:00:08]} 18.
b5 {[%clk 00:02:03]} {[%emt 00:00:11]} Na5 {[%clk 00:02:09]} {[%emt 00:00:08]}
19. Qb4 {[%clk 00:02:00]} {[%emt 00:00:05]} Qf4 {[%clk 00:01:56]} {[%emt
00:00:15]} 20. Qd2 {[%clk 00:01:49]} {[%emt 00:00:13]} Qf5 {[%clk 00:01:52]}
{[%emt 00:00:05]} 21. Nc7 {[%clk 00:01:37]} {[%emt 00:00:14]} Nc4 {[%clk
00:01:43]} {[%emt 00:00:12]} 22. Bxc4 {[%clk 00:01:37]} {[%emt 00:00:02]} dxc4
{[%clk 00:01:38]} {[%emt 00:00:07]} 23. Nxe8 {[%clk 00:01:21]} {[%emt
00:00:17]} Rxe8 {[%clk 00:01:39]} {[%emt 00:00:01]} 24. Qe3 {[%clk 00:00:50]}
{[%emt 00:00:33]} Nf4 {[%clk 00:01:27]} {[%emt 00:00:14]} 25. Ne5 {[%clk
00:00:26]} {[%emt 00:00:26]} Bxg2 {[%clk 00:01:25]} {[%emt 00:00:04]} 26. Qg3
{[%clk 00:00:15]} {[%emt 00:00:13]} Bd5 {[%clk 00:01:23]} {[%emt 00:00:03]} 27.
f3 {[%clk 00:00:13]} {[%emt 00:00:05]} h5 {[%clk 00:01:20]} {[%emt 00:00:05]}
28. Rac1 {[%clk 00:00:11]} {[%emt 00:00:04]} h4 {[%clk 00:01:21]} 29. Qg4
{[%clk 00:00:12]} {[%emt 00:00:01]} Nh3+ {[%clk 00:01:14]} {[%emt 00:00:09]} 30.
Kg2 Qxg4+ {[%clk 00:01:13]} 31. Nxg4 {[%clk 00:00:13]} {[%emt 00:00:01]} Nf4+
{[%clk 00:01:10]} {[%emt 00:00:04]} 32. Kf1 {[%clk 00:00:13]} {[%emt 00:00:02]}
Rxe1+ 33. Rxe1 {[%clk 00:00:14]} Nd3 {[%clk 00:01:06]} {[%emt 00:00:01]} 34.
Nxf6+ {[%clk 00:00:15]} {[%emt 00:00:02]} gxf6 {[%clk 00:01:07]} 35. Re2 {[%clk
00:00:16]} {[%emt 00:00:01]} f5 {[%clk 00:00:58]} {[%emt 00:00:11]} 36. Bc3
{[%clk 00:00:13]} {[%emt 00:00:05]} f4 {[%clk 00:00:58]} {[%emt 00:00:02]} 37.
Re8+ {[%clk 00:00:11]} {[%emt 00:00:03]} Kg7 {[%clk 00:00:59]} {[%emt
00:00:01]} 38. Ke2 {[%clk 00:00:11]} {[%emt 00:00:02]} Kg6 {[%clk 00:00:55]}
{[%emt 00:00:06]} 39. a4 {[%clk 00:00:11]} {[%emt 00:00:01]} Bb7 {[%clk
00:00:51]} {[%emt 00:00:07]} 40. Rb8 {[%clk 00:00:12]} {[%emt 00:00:01]} Bd5
{[%clk 00:00:51]} {[%emt 00:00:01]} 41. Rxb6+ {[%clk 00:00:13]} {[%emt
00:00:01]} 1-0

[Event "Blixt-SM 2021"]
[Site "Elite Hotel Marina Plaza, Kungstorget 6, Helsingborg, Sweden"]
[Date "2021.11.14"]
[Round "7.4"]
[White "Frisk, Ellinor"]
[Black "Storme, Isak"]
[Result "0-1"]
[TimeControl "3 minutes + 2 seconds per move."]
[WhiteTitle "WIM"]
[BlackTitle "FM"]
[WhiteFideId "1708481"]
[BlackFideId "1728113"]
[WhiteElo "2142"]
[BlackElo "2037"]

1. Nf3 {[%clk 00:03:02]} {[%emt 00:00:01]} d5 {[%clk 00:03:03]} {[%emt
00:00:01]} 2. c4 {[%clk 00:03:03]} {[%emt 00:00:02]} e6 {[%clk 00:03:04]} 3. g3
{[%clk 00:03:01]} {[%emt 00:00:04]} Nf6 {[%clk 00:03:04]} {[%emt 00:00:02]} 4.
Bg2 {[%clk 00:03:02]} Be7 {[%clk 00:03:03]} {[%emt 00:00:03]} 5. O-O {[%clk
00:03:02]} {[%emt 00:00:02]} O-O {[%clk 00:03:03]} {[%emt 00:00:02]} 6. d4
{[%clk 00:03:02]} {[%emt 00:00:02]} c6 {[%clk 00:03:03]} {[%emt 00:00:02]} 7.
Qc2 {[%clk 00:02:58]} {[%emt 00:00:06]} b6 {[%clk 00:03:01]} {[%emt 00:00:04]}
8. Rd1 {[%clk 00:02:57]} {[%emt 00:00:03]} Bb7 {[%clk 00:03:01]} {[%emt
00:00:02]} 9. b3 {[%clk 00:02:50]} {[%emt 00:00:10]} Nbd7 {[%clk 00:02:55]}
{[%emt 00:00:07]} 10. Nc3 {[%clk 00:02:47]} {[%emt 00:00:05]} Ba6 {[%clk
00:02:47]} {[%emt 00:00:11]} 11. e4 {[%clk 00:01:42]} {[%emt 00:01:07]} dxc4
{[%clk 00:02:43]} {[%emt 00:00:05]} 12. Ng5 {[%clk 00:00:42]} {[%emt 00:01:02]}
h6 {[%clk 00:02:34]} {[%emt 00:00:11]} 13. e5 {[%clk 00:00:38]} {[%emt
00:00:07]} hxg5 {[%clk 00:02:33]} {[%emt 00:00:03]} 14. exf6 {[%clk 00:00:39]}
{[%emt 00:00:01]} Bxf6 {[%clk 00:02:30]} {[%emt 00:00:05]} 15. Bxc6 {[%clk
00:00:14]} {[%emt 00:00:27]} Rc8 {[%clk 00:02:21]} {[%emt 00:00:10]} 16. Bg2
{[%clk 00:00:13]} {[%emt 00:00:04]} b5 {[%clk 00:01:50]} {[%emt 00:00:32]} 17.
bxc4 {[%clk 00:00:09]} {[%emt 00:00:07]} b4 {[%clk 00:01:45]} {[%emt 00:00:07]}
18. Ne4 {[%clk 00:00:08]} {[%emt 00:00:03]} Rxc4 {[%clk 00:01:39]} {[%emt
00:00:08]} 19. Qb3 {[%clk 00:00:08]} {[%emt 00:00:03]} Rxd4 {[%clk 00:01:20]}
{[%emt 00:00:20]} 20. Nxf6+ {[%clk 00:00:07]} {[%emt 00:00:03]} Qxf6 {[%clk
00:01:20]} {[%emt 00:00:01]} 21. Rxd4 {[%clk 00:00:08]} {[%emt 00:00:02]} Qxd4
{[%clk 00:01:20]} {[%emt 00:00:02]} 22. Bb2 {[%clk 00:00:09]} Qc4 {[%clk
00:01:17]} {[%emt 00:00:04]} 23. Rd1 {[%clk 00:00:09]} {[%emt 00:00:02]} Qxb3
{[%clk 00:01:11]} {[%emt 00:00:08]} 24. axb3 {[%clk 00:00:11]} {[%emt
00:00:01]} Nc5 {[%clk 00:01:10]} {[%emt 00:00:03]} 25. Ra1 {[%clk 00:00:09]}
{[%emt 00:00:03]} Rd8 {[%clk 00:00:58]} {[%emt 00:00:13]} 26. Ra5 {[%clk
00:00:10]} {[%emt 00:00:02]} Rd1+ {[%clk 00:00:58]} {[%emt 00:00:02]} 0-1

[Event "Blixt-SM 2021"]
[Site "Elite Hotel Marina Plaza, Kungstorget 6, Helsingborg, Sweden"]
[Date "2021.11.14"]
[Round "9.2"]
[White "Nilsson, Patrik"]
[Black "Smith, Axel"]
[Result "0-1"]
[TimeControl "3 minutes + 2 seconds per move."]
[BlackTitle "GM"]
[WhiteFideId "1708171"]
[BlackFideId "1707930"]
[WhiteElo "2143"]
[BlackElo "2473"]

1. d4 {[%clk 00:03:02]} {[%emt 00:00:01]} Nf6 {[%clk 00:03:04]} 2. Bf4 {[%clk
00:03:03]} {[%emt 00:00:02]} c5 {[%clk 00:03:04]} {[%emt 00:00:02]} 3. d5
{[%clk 00:03:04]} b5 {[%clk 00:03:01]} {[%emt 00:00:05]} 4. f3 {[%clk
00:03:04]} {[%emt 00:00:02]} d6 {[%clk 00:02:56]} {[%emt 00:00:08]} 5. e4
{[%clk 00:03:02]} {[%emt 00:00:03]} a6 {[%clk 00:02:52]} {[%emt 00:00:07]} 6.
a4 {[%clk 00:03:01]} {[%emt 00:00:03]} b4 {[%clk 00:02:53]} {[%emt 00:00:01]} 7.
a5 {[%clk 00:02:53]} {[%emt 00:00:10]} e6 {[%clk 00:02:44]} {[%emt 00:00:11]} 8.
dxe6 {[%clk 00:02:17]} {[%emt 00:00:38]} Bxe6 {[%clk 00:02:45]} 9. e5 {[%clk
00:01:59]} {[%emt 00:00:20]} Nd5 {[%clk 00:02:40]} {[%emt 00:00:07]} 10. Bg3
{[%clk 00:01:29]} {[%emt 00:00:31]} dxe5 {[%clk 00:02:41]} {[%emt 00:00:01]} 11.
Bxe5 {[%clk 00:01:19]} {[%emt 00:00:12]} Nc6 {[%clk 00:02:42]} 12. Bg3 {[%clk
00:01:19]} {[%emt 00:00:03]} Ne3 {[%clk 00:02:31]} {[%emt 00:00:13]} 13. Qe2
{[%clk 00:01:11]} {[%emt 00:00:10]} Nd4 {[%clk 00:02:27]} {[%emt 00:00:05]} 0-1

[Event "Blixt-SM 2021"]
[Site "Elite Hotel Marina Plaza, Kungstorget 6, Helsingborg, Sweden"]
[Date "2021.11.14"]
[Round "11.1"]
[White "Smith, Axel"]
[Black "Kucuksari, Kaan"]
[Result "1-0"]
[TimeControl "3 minutes + 2 seconds per move."]
[WhiteTitle "GM"]
[BlackTitle "FM"]
[WhiteFideId "1707930"]
[BlackFideId "6380166"]
[WhiteElo "2473"]
[BlackElo "2301"]

1. e4 {[%clk 00:03:04]} {[%emt 00:02:23]} c5 {[%clk 00:03:03]} 2. Nc3 {[%clk
00:03:05]} Nc6 {[%clk 00:03:04]} {[%emt 00:00:02]} 3. Bb5 {[%clk 00:03:05]}
{[%emt 00:00:02]} Nd4 {[%clk 00:02:55]} {[%emt 00:00:11]} 4. Bc4 {[%clk
00:03:06]} e6 {[%clk 00:02:09]} {[%emt 00:00:47]} 5. Nf3 {[%clk 00:03:05]}
{[%emt 00:00:04]} Ne7 {[%clk 00:02:08]} {[%emt 00:00:03]} 6. d3 {[%clk
00:02:56]} {[%emt 00:00:11]} d5 {[%clk 00:02:06]} {[%emt 00:00:04]} 7. Nxd4
{[%clk 00:02:29]} {[%emt 00:00:29]} cxd4 {[%clk 00:01:53]} {[%emt 00:00:15]} 8.
Bb5+ {[%clk 00:02:30]} Nc6 {[%clk 00:01:54]} 9. Bxc6+ {[%clk 00:02:28]} {[%emt
00:00:05]} bxc6 {[%clk 00:01:55]} 10. Ne2 {[%clk 00:02:29]} c5 {[%clk
00:01:48]} {[%emt 00:00:10]} 11. e5 {[%clk 00:02:04]} {[%emt 00:00:27]} f6
{[%clk 00:01:33]} {[%emt 00:00:16]} 12. f4 {[%clk 00:01:55]} {[%emt 00:00:11]}
fxe5 {[%clk 00:01:29]} {[%emt 00:00:06]} 13. fxe5 {[%clk 00:01:57]} Qh4+ {[%clk
00:01:30]} 14. Ng3 {[%clk 00:01:49]} {[%emt 00:00:10]} g6 {[%clk 00:01:16]}
{[%emt 00:00:16]} 15. O-O {[%clk 00:01:44]} {[%emt 00:00:07]} Bg7 {[%clk
00:01:16]} {[%emt 00:00:02]} 16. Qe2 {[%clk 00:01:31]} {[%emt 00:00:15]} Bd7
{[%clk 00:01:05]} {[%emt 00:00:12]} 17. Bd2 {[%clk 00:01:28]} {[%emt 00:00:05]}
Qe7 {[%clk 00:00:47]} {[%emt 00:00:20]} 18. Qg4 {[%clk 00:01:24]} {[%emt
00:00:05]} Bxe5 {[%clk 00:00:44]} {[%emt 00:00:05]} 19. Bg5 {[%clk 00:01:18]}
{[%emt 00:00:09]} Qd6 {[%clk 00:00:33]} {[%emt 00:00:13]} 20. Rae1 {[%clk
00:01:13]} {[%emt 00:00:08]} Bxg3 {[%clk 00:00:19]} {[%emt 00:00:15]} 21. hxg3
{[%clk 00:01:12]} {[%emt 00:00:03]} e5 {[%clk 00:00:20]} {[%emt 00:00:01]} 22.
Qh4 {[%clk 00:01:01]} {[%emt 00:00:13]} Be6 {[%clk 00:00:12]} {[%emt 00:00:09]}
23. Bf6 {[%clk 00:01:00]} {[%emt 00:00:05]} Rf8 {[%clk 00:00:07]} {[%emt
00:00:07]} 24. Qxh7 {[%clk 00:00:36]} {[%emt 00:00:25]} e4 {[%clk 00:00:08]} 25.
dxe4 {[%clk 00:00:29]} {[%emt 00:00:10]} Bf7 {[%clk 00:00:09]} 26. exd5+ {[%clk
00:00:28]} {[%emt 00:00:03]} Kd7 {[%clk 00:00:10]} 27. Re7+ {[%clk 00:00:24]}
{[%emt 00:00:05]} Qxe7 {[%clk 00:00:09]} {[%emt 00:00:03]} 28. Bxe7 {[%clk
00:00:25]} {[%emt 00:00:01]} Kxe7 {[%clk 00:00:10]} 29. Qg7 {[%clk 00:00:16]}
{[%emt 00:00:12]} Rac8 {[%clk 00:00:05]} {[%emt 00:00:06]} 30. Qe5+ {[%clk
00:00:14]} {[%emt 00:00:04]} Kd7 {[%clk 00:00:06]} {[%emt 00:00:01]} 31. Rxf7+
{[%clk 00:00:14]} {[%emt 00:00:02]} Rxf7 {[%emt 00:00:02]} 32. Qe6+ Kd8 {[%clk
00:00:07]} 33. Qxf7 {[%clk 00:00:17]} Rc7 {[%clk 00:00:08]} {[%emt 00:00:02]}
34. Qe6 {[%clk 00:00:14]} {[%emt 00:00:05]} Re7 {[%clk 00:00:06]} {[%emt
00:00:04]} 35. Qd6+ {[%clk 00:00:14]} {[%emt 00:00:02]} Rd7 {[%clk 00:00:07]}
36. Qxg6 {[%clk 00:00:13]} {[%emt 00:00:03]} c4 {[%clk 00:00:08]} {[%emt
00:00:01]} 37. d6 {[%clk 00:00:13]} {[%emt 00:00:02]} Kc8 {[%clk 00:00:08]}
{[%emt 00:00:01]} 38. Qg8+ {[%clk 00:00:14]} {[%emt 00:00:02]} Kb7 {[%clk
00:00:08]} {[%emt 00:00:02]} 39. Qxc4 {[%clk 00:00:15]} {[%emt 00:00:01]} Rxd6
{[%clk 00:00:09]} 40. Qb4+ {[%clk 00:00:15]} {[%emt 00:00:02]} Kc6 {[%clk
00:00:10]} 41. Qc4+ {[%clk 00:00:15]} {[%emt 00:00:02]} Kd7 {[%clk 00:00:11]}
42. Kf2 {[%clk 00:00:16]} {[%emt 00:00:01]} Rf6+ {[%clk 00:00:11]} {[%emt
00:00:01]} 43. Ke2 {[%clk 00:00:17]} {[%emt 00:00:02]} 1-0